[Event "7th Leer Open-B 2024"]
[Site "Leer"]
[Date "2024.10.31"]
[Round "1.16"]
[White "An, David"]
[Black "Ulrich, Thomas M"]
[Result "0-1"]
[ECO "B12"]
[WhiteElo "1431"]
[BlackElo "2278"]
[Annotator "RC"]
[PlyCount "90"]
[EventDate "2024.10.14"]
[EventType "swiss"]
[EventCountry "GER"]
[SourceTitle "playchess.com"]
[Source "ChessBase"]
[SourceQuality "1"]
[TimeControl "40/5400+30:900+30"]

1. e4 {[%emt 0:00:05]} c6 {[%emt 0:00:21]} 2. d4 {[%emt 0:00:12]} d5 {[%emt 0:00:28]} 3. f3 {[%emt 0:00:31]} dxe4 {[%emt 0:02:58]} 4. fxe4 {[%emt 0:00:32]} Nf6 {[%emt 0:00:16]} 5. Nc3 {[%emt 0:00:24]} Bg4 {[%emt 0:00:43]} 6. Nf3 {[%emt 0:00:57]} e6 {[%emt 0:00:56]} 7. a3 {[%emt 0:00:59]} c5 {[%emt 0:03:37]} 8. e5 {[%emt 0:06:35]} Nd5 {[%emt 0:05:13]} 9. Nxd5 {[%emt 0:04:31]} Qxd5 {[%emt 0:01:01]} 10. Be3 {[%emt 0:01:02]} Nc6 {[%emt 0:04:46]} 11. dxc5 {[%emt 0:03:36]} Bxf3 {[%emt 0:01:59]} 12. Qxf3 {[%emt 0:01:11]} Qxe5 {[%emt 0:08:45]} 13. Bb5 {[%emt 0:03:04]} Rc8 {[%emt 0:00:42]} 14. O-O {[%emt 0:03:41]} f6 {[%emt 0:01:07]} 15. b4 {[%emt 0:00:30]} Be7 {[%emt 0:04:55]} 16. Bd3 {[%emt 0:01:13]} O-O {[%emt 0:04:07]} 17. Qh3 {[%emt 0:02:05]} f5 {[%emt 0:00:50]} 18. Bf4 {[%emt 0:02:12]} Qd4+ {[%emt 0:02:31]} 19. Be3 {[%emt 0:01:30]} Qf6 {[%emt 0:01:43]} 20. g4 {[%emt 0:01:24]} Qg6 {[%emt 0:03:00]} 21. Qg3 {[%emt 0:03:55]} Bf6 {[%emt 0:01:37]} 22. Rae1 {[%emt 0:01:20]} Ne5 {[%emt 0:04:19]} 23. gxf5 {[%emt 0:02:16]} Qxg3+ {[%emt 0:00:33]} 24. hxg3 {[%emt 0:00:12]} Nxd3 {[%emt 0:00:11]} 25. cxd3 {[%emt 0:00:13]} exf5 {[%emt 0:00:18]} 26. Rxf5 {[%emt 0:00:24]} Bb2 {[%emt 0:00:17]} 27. Rxf8+ {[%emt 0:00:23]} Rxf8 {[%emt 0:00:18]} 28. a4 {[%emt 0:00:31]} Rd8 {[%emt 0:00:13]} 29. Rd1 {[%emt 0:00:29]} Bd4 {[%emt 0:00:04]} 30. Kf2 {[%emt 0:00:38]} Rf8+ {[%emt 0:00:48]} 31. Ke2 {[%emt 0:00:11]} Re8 {[%emt 0:00:03]} 32. Re1 {[%emt 0:01:28]} Rxe3+ {[%emt 0:00:34]} 33. Kd2 {[%emt 0:00:13]} Rxe1 {[%emt 0:00:19]} 34. Kxe1 {[%emt 0:00:03]} Bc3+ {[%emt 0:00:11]} 35. Ke2 {[%emt 0:00:05]} Bxb4 {[%emt 0:00:21]} 36. d4 {[%emt 0:00:05]} Kf7 {[%emt 0:00:13]} 37. Ke3 {[%emt 0:00:10]} Ke6 {[%emt 0:01:13]} 38. Ke4 {[%emt 0:00:09]} Ba5 {[%emt 0:02:23]} 39. d5+ {[%emt 0:00:28]} Kd7 {[%emt 0:00:09]} 40. Ke5 {[%emt 0:03:56]} Bc7+ {[%emt 0:01:15]} 41. d6 {[%emt 0:15:39]} Ba5 {[%emt 0:15:09]} 42. Kd5 {[%emt 0:01:19]} Bd8 {[%emt 0:01:23]} 43. g4 {[%emt 0:00:56]} g6 {[%emt 0:00:20]} 44. a5 {[%emt 0:01:52]} Bxa5 {[%emt 0:00:09]} 45. Ke5 {[%emt 0:01:14]} Bb4 {[%emt 0:00:28]} 0-1

[Event "7th Leer Open-B 2024"]
[Site "Leer"]
[Date "2024.10.31"]
[Round "1.17"]
[White "Hutwalker, Michael"]
[Black "Freese, Hermann"]
[Result "1-0"]
[ECO "A43"]
[WhiteElo "1760"]
[BlackElo "1577"]
[Annotator "NA RC"]
[PlyCount "84"]
[EventDate "2024.10.14"]
[EventType "swiss"]
[EventCountry "GER"]
[SourceTitle "playchess.com"]
[Source "ChessBase"]
[SourceQuality "1"]
[TimeControl "40/5400+30:900+30"]

1. e4 {[%emt 0:00:03]} e6 {[%emt 0:00:14]} 2. d4 {[%emt 0:00:16]} c5 {[%emt 0:00:17]} 3. d5 {[%emt 0:01:51]} d6 {[%emt 0:00:31]} 4. c4 {[%emt 0:00:26]} Ne7 {[%emt 0:00:56]} 5. Nc3 {[%emt 0:00:22]} g6 {[%emt 0:00:37]} 6. Bg5 {[%emt 0:02:28]} Nd7 {[%emt 0:01:50]} 7. f4 {[%emt 0:02:10]} Bg7 {[%emt 0:00:44]} 8. Qd2 {[%emt 0:04:15]} e5 {[%emt 0:02:48]} 9. Nf3 {[%emt 0:01:45]} a6 {[%emt 0:00:14]} 10. fxe5 {[%emt 0:00:45]} Nxe5 {[%emt 0:00:37]} 11. Nxe5 {[%emt 0:00:46]} Bxe5 {[%emt 0:00:16]} 12. Be2 {[%emt 0:04:21]} f6 {[%emt 0:02:37]} 13. Bh6 {[%emt 0:01:43]} Bd4 {[%emt 0:06:15]} 14. Rf1 {[%emt 0:07:22]} Qd7 {[%emt 0:03:52]} 15. Bg7 {[%emt 0:00:27]} Rg8 {[%emt 0:02:48]} 16. Bxf6 {[%emt 0:00:08]} Rf8 {[%emt 0:05:28]} 17. Bxd4 {[%emt 0:00:21]} Rxf1+ {[%emt 0:00:22]} 18. Kxf1 {[%emt 0:00:09]} cxd4 {[%emt 0:00:33]} 19. Qxd4 {[%emt 0:00:08]} Ng8 {[%emt 0:00:43]} 20. Kg1 {[%emt 0:02:04]} Qe7 {[%emt 0:00:49]} 21. Rf1 {[%emt 0:00:55]} Bd7 {[%emt 0:00:15]} 22. Qb6 {[%emt 0:03:26]} Bc8 {[%emt 0:07:35]} 23. Qd4 {[%emt 0:03:49]} Bd7 {[%emt 0:00:35]} 24. b4 {[%emt 0:01:29]} Qe5 {[%emt 0:03:54]} 25. Qxe5+ {[%emt 0:00:35]} dxe5 {[%emt 0:00:06]} 26. c5 {[%emt 0:00:25]} Ne7 {[%emt 0:01:04]} 27. a4 {[%emt 0:01:15]} Rc8 {[%emt 0:01:01]} 28. Rf6 {[%emt 0:04:52]} a5 {[%emt 0:03:27]} 29. Rb6 {[%emt 0:05:24]} axb4 {[%emt 0:00:19]} 30. Rxb4 {[%emt 0:00:12]} Rxc5 {[%emt 0:00:14]} 31. Nb5 {[%emt 0:00:48]} Rc1+ {[%emt 0:02:22]} 32. Kf2 {[%emt 0:00:12]} Nc8 {[%emt 0:04:33]} 33. Kg3 {[%emt 0:04:16]} Rc2 {[%emt 0:00:39]} 34. Kf2 {[%emt 0:08:21]} Bxb5 {[%emt 0:06:02]} 35. Rxb5 {[%emt 0:06:02]} Nd6 {[%emt 0:00:12]} 36. Rb4 {[%emt 0:00:51]} Kd7 {[%emt 0:01:47]} 37. Ke3 {[%emt 0:00:53]} Kc7 {[%emt 0:00:15]} 38. Kd3 {[%emt 0:00:55]} Ra2 {[%emt 0:00:30]} 39. Bf3 {[%emt 0:03:40]} b6 {[%emt 0:01:42]} 40. Kc3 {[%emt 0:01:19]} Kb7 {[%emt 0:02:33]} 41. Kb3 {[%emt 0:15:19]} Ra1 {[%emt 0:15:11]} 42. Kb2 {[%emt 0:00:08]} Rd1 {[%emt 0:39:43]} 1-0

[Event "7th Leer Open-B 2024"]
[Site "Leer"]
[Date "2024.10.31"]
[Round "1.17"]
[White "An, David"]
[Black "Ulrich, Thomas M"]
[Result "*"]
[ECO "C54"]
[WhiteElo "1431"]
[BlackElo "2278"]
[Annotator "RC"]
[PlyCount "41"]
[EventDate "2024.10.14"]
[EventType "swiss"]
[EventCountry "GER"]
[SourceTitle "playchess.com"]
[Source "ChessBase"]
[SourceQuality "1"]
[TimeControl "40/5400+30:900+30"]

1. e4 {[%emt 0:00:03]} e5 {[%emt 0:00:18]} 2. Nf3 {[%emt 0:00:04]} Nc6 {[%emt 0:00:14]} 3. Bc4 {[%emt 0:00:04]} Bc5 {[%emt 0:00:22]} 4. c3 {[%emt 0:00:06]} Nf6 {[%emt 0:00:20]} 5. d4 {[%emt 0:00:47]} exd4 {[%emt 0:00:33]} 6. cxd4 {[%emt 0:00:07]} Bb4+ {[%emt 1:31:43]} 7. Bd2 {[%emt 0:00:08]} Nxe4 {[%emt 0:00:00]} 8. Bxb4 {[%emt 0:00:07]} Nxb4 {[%emt 0:00:00]} 9. Bxf7+ {[%emt 0:00:19]} Kxf7 {[%emt 0:00:00]} 10. Qb3+ {[%emt 0:00:10]} d5 {[%emt 0:00:00]} 11. Ne5+ {[%emt 0:00:10]} Kg8 {[%emt 0:00:00]} 12. Qxb4 {[%emt 0:00:45]} Qd6 {[%emt 0:00:00]} 13. Qa4 {[%emt 0:04:28]} Be6 {[%emt 0:00:00]} 14. O-O {[%emt 0:02:38]} g6 {[%emt 0:00:00]} 15. Nc3 {[%emt 0:02:04]} Nxc3 {[%emt 0:00:00]} 16. bxc3 {[%emt 0:00:06]} Kg7 {[%emt 0:00:00]} 17. Rab1 {[%emt 0:00:38]} b6 {[%emt 0:00:00]} 18. Rfe1 {[%emt 0:00:48]} Rhf8 {[%emt 0:06:00]} 19. Re2 {[%emt 0:02:24]} Qe7 {[%emt 0:00:00]} 20. Rbe1 {[%emt 0:02:26]} Qf6 {[%emt 0:00:00]} 21. f3 {[%emt 0:00:52]} *

[Event "7th Leer Open-B 2024"]
[Site "Leer"]
[Date "2024.10.31"]
[Round "1.18"]
[White "Klawun-Schulze, Stefanie"]
[Black "Kuhlins, Niklas"]
[Result "0-1"]
[ECO "B22"]
[WhiteElo "1561"]
[BlackElo "1758"]
[Annotator "NA RC"]
[PlyCount "46"]
[EventDate "2024.10.14"]
[EventType "swiss"]
[EventCountry "GER"]
[SourceTitle "playchess.com"]
[Source "ChessBase"]
[SourceQuality "1"]
[TimeControl "40/5400+30:900+30"]

1. e4 {[%emt 0:00:04]} c5 {[%emt 0:00:14]} 2. c3 {[%emt 0:00:21]} Nf6 {[%emt 0:00:30]} 3. e5 {[%emt 0:00:53]} Nd5 {[%emt 0:00:09]} 4. c4 {[%emt 0:00:32]} Nc7 {[%emt 0:01:15]} 5. Nf3 {[%emt 0:00:42]} Nc6 {[%emt 0:00:14]} 6. Nc3 {[%emt 0:01:58]} g6 {[%emt 0:03:45]} 7. d4 {[%emt 0:01:17]} cxd4 {[%emt 0:00:38]} 8. Nxd4 {[%emt 0:00:10]} Nxe5 {[%emt 0:01:14]} 9. Bf4 {[%emt 0:00:53]} Bg7 {[%emt 0:01:38]} 10. Be2 {[%emt 0:01:34]} O-O {[%emt 0:03:21]} 11. O-O {[%emt 0:01:20]} d6 {[%emt 0:02:43]} 12. h3 {[%emt 0:03:44]} Ne6 {[%emt 0:01:16]} 13. Nxe6 {[%emt 0:01:41]} Bxe6 {[%emt 0:00:15]} 14. Qd2 {[%emt 0:04:32]} Nxc4 {[%emt 0:02:07]} 15. Bxc4 {[%emt 0:01:21]} Bxc4 {[%emt 0:00:10]} 16. Rfd1 {[%emt 0:01:48]} Qa5 {[%emt 0:07:33]} 17. Re1 {[%emt 0:10:00]} e5 {[%emt 0:11:51]} 18. Bg3 {[%emt 0:04:34]} Rad8 {[%emt 0:01:00]} 19. Bh4 {[%emt 0:03:45]} Rd7 {[%emt 0:01:25]} 20. b3 {[%emt 0:02:52]} Be6 {[%emt 0:00:47]} 21. Qe3 {[%emt 0:02:00]} d5 {[%emt 0:02:11]} 22. Ne2 {[%emt 0:02:24]} d4 {[%emt 0:05:37]} 23. Qc1 {[%emt 0:04:50]} d3 {[%emt 0:02:11]} 0-1

[Event "7th Leer Open-B 2024"]
[Site "Leer"]
[Date "2024.10.31"]
[Round "1.19"]
[White "Jablonski, Ture"]
[Black "Kulgemeyer, Justus"]
[Result "1-0"]
[ECO "D15"]
[WhiteElo "1756"]
[BlackElo "1566"]
[Annotator "NA RC"]
[PlyCount "119"]
[EventDate "2024.10.14"]
[EventType "swiss"]
[EventCountry "GER"]
[SourceTitle "playchess.com"]
[Source "ChessBase"]
[SourceQuality "1"]
[TimeControl "40/5400+30:900+30"]

1. d4 {[%emt 0:00:04]} d5 {[%emt 0:00:06]} 2. c4 {[%emt 0:00:08]} c6 {[%emt 0:00:14]} 3. Nf3 {[%emt 0:00:09]} Nf6 {[%emt 0:00:08]} 4. e3 {[%emt 0:00:05]} Bf5 {[%emt 0:00:16]} 5. Qb3 {[%emt 0:00:30]} b6 {[%emt 0:01:08]} 6. Nc3 {[%emt 0:00:18]} e6 {[%emt 0:00:21]} 7. Bd2 {[%emt 0:01:11]} Nbd7 {[%emt 0:00:40]} 8. Rc1 {[%emt 0:00:38]} Be7 {[%emt 0:00:39]} 9. cxd5 {[%emt 0:01:19]} exd5 {[%emt 0:01:36]} 10. Ba6 {[%emt 0:05:48]} O-O {[%emt 0:05:57]} 11. Ne2 {[%emt 0:06:59]} c5 {[%emt 0:02:35]} 12. Nf4 {[%emt 0:12:58]} c4 {[%emt 0:03:22]} 13. Qb5 {[%emt 0:03:40]} Nb8 {[%emt 0:02:04]} 14. Ne5 {[%emt 0:01:23]} Nxa6 {[%emt 0:01:06]} 15. Qxa6 {[%emt 0:00:08]} Bc8 {[%emt 0:02:12]} 16. Qa4 {[%emt 0:05:58]} a6 {[%emt 0:01:47]} 17. Nc6 {[%emt 0:01:50]} Bd7 {[%emt 0:03:01]} 18. Nxe7+ {[%emt 0:01:50]} Qxe7 {[%emt 0:00:25]} 19. Qb4 {[%emt 0:00:07]} Qxb4 {[%emt 0:00:50]} 20. Bxb4 {[%emt 0:00:01]} Rfe8 {[%emt 0:00:55]} 21. b3 {[%emt 0:03:29]} b5 {[%emt 0:01:04]} 22. Ke2 {[%emt 0:03:17]} a5 {[%emt 0:01:09]} 23. Bc5 {[%emt 0:05:49]} Ne4 {[%emt 0:01:51]} 24. Nxd5 {[%emt 0:00:58]} Nxc5 {[%emt 0:00:40]} 25. dxc5 {[%emt 0:00:18]} Red8 {[%emt 0:02:52]} 26. Nb6 {[%emt 0:00:32]} Rab8 {[%emt 0:00:52]} 27. Rhd1 {[%emt 0:00:27]} Bc6 {[%emt 0:00:55]} 28. f3 {[%emt 0:00:18]} Rxd1 {[%emt 0:01:26]} 29. Rxd1 {[%emt 0:00:26]} c3 {[%emt 0:00:50]} 30. Rd6 {[%emt 0:01:36]} Be8 {[%emt 0:03:40]} 31. b4 {[%emt 0:06:23]} axb4 {[%emt 0:01:17]} 32. Rd4 {[%emt 0:05:28]} f6 {[%emt 0:02:47]} 33. Rxb4 {[%emt 0:00:46]} Bg6 {[%emt 0:02:25]} 34. e4 {[%emt 0:04:58]} Rd8 {[%emt 0:01:06]} 35. Nd5 {[%emt 0:04:34]} Bf7 {[%emt 0:00:54]} 36. Nxc3 {[%emt 0:02:18]} Rc8 {[%emt 0:01:23]} 37. a4 {[%emt 0:05:34]} bxa4 {[%emt 0:05:36]} 38. Nd5 {[%emt 0:12:04]} Bxd5 {[%emt 0:01:34]} 39. exd5 {[%emt 0:00:10]} Rxc5 {[%emt 0:00:17]} 40. Rd4 {[%emt 0:00:27]} Kf8 {[%emt 0:01:49]} 41. d6 {[%emt 0:15:14]} Ke8 {[%emt 0:15:18]} 42. Rxa4 {[%emt 0:00:34]} Rd5 {[%emt 0:01:01]} 43. Ra8+ {[%emt 0:00:17]} Kf7 {[%emt 0:00:37]} 44. Ra7+ {[%emt 0:00:12]} Kg6 {[%emt 0:00:27]} 45. d7 {[%emt 0:00:08]} h6 {[%emt 0:00:33]} 46. Ke3 {[%emt 0:00:48]} Rd6 {[%emt 0:01:22]} 47. Kf4 {[%emt 0:00:22]} Rd4+ {[%emt 0:00:54]} 48. Kg3 {[%emt 0:00:31]} Rd6 {[%emt 0:00:26]} 49. Kf4 {[%emt 0:01:06]} Rd4+ {[%emt 0:00:07]} 50. Ke3 {[%emt 0:00:01]} Rd6 {[%emt 0:00:08]} 51. g4 {[%emt 0:00:08]} f5 {[%emt 0:03:30]} 52. Ra6 {[%emt 0:00:48]} Rxa6 {[%emt 0:01:46]} 53. d8=Q {[%emt 0:00:05]} Rf6 {[%emt 0:00:18]} 54. h4 {[%emt 0:01:55]} f4+ {[%emt 0:00:27]} 55. Ke4 {[%emt 0:00:26]} h5 {[%emt 0:02:26]} 56. Qe8+ {[%emt 0:00:50]} Kh7 {[%emt 0:00:19]} 57. Qxh5+ {[%emt 0:00:17]} Kg8 {[%emt 0:00:29]} 58. Qd5+ {[%emt 0:00:44]} Kh7 {[%emt 0:00:10]} 59. g5 {[%emt 0:00:24]} Rf8 {[%emt 0:00:10]} 60. h5 {[%emt 0:00:25]} 1-0

[Event "7th Leer Open-B 2024"]
[Site "Leer"]
[Date "2024.10.31"]
[Round "1.20"]
[White "Nafati, Meryem"]
[Black "Drozd, Maciej"]
[Result "0-1"]
[ECO "C01"]
[WhiteElo "1559"]
[BlackElo "1752"]
[Annotator "NA RC"]
[PlyCount "58"]
[EventDate "2024.10.14"]
[EventType "swiss"]
[EventCountry "GER"]
[SourceTitle "playchess.com"]
[Source "ChessBase"]
[SourceQuality "1"]
[TimeControl "40/5400+30:900+30"]

1. e4 {[%emt 0:00:02]} e6 {[%emt 0:00:20]} 2. d4 {[%emt 0:00:06]} d5 {[%emt 0:00:05]} 3. exd5 {[%emt 0:00:20]} exd5 {[%emt 0:00:07]} 4. Nf3 {[%emt 0:00:10]} Bd6 {[%emt 0:00:12]} 5. Be3 {[%emt 0:00:46]} Nc6 {[%emt 0:00:27]} 6. Nbd2 {[%emt 0:03:04]} Nge7 {[%emt 0:00:13]} 7. Bd3 {[%emt 0:05:07]} Bg4 {[%emt 0:01:38]} 8. c3 {[%emt 0:00:19]} Qd7 {[%emt 0:00:15]} 9. O-O {[%emt 0:02:01]} O-O-O {[%emt 0:00:23]} 10. Re1 {[%emt 0:11:15]} h5 {[%emt 0:02:59]} 11. h3 {[%emt 0:13:38]} Bf5 {[%emt 0:02:06]} 12. Nf1 {[%emt 0:05:01]} f6 {[%emt 0:00:32]} 13. Bxf5 {[%emt 0:14:38]} Nxf5 {[%emt 0:00:52]} 14. N3h2 {[%emt 0:04:45]} g5 {[%emt 0:00:17]} 15. a4 {[%emt 0:06:40]} g4 {[%emt 0:01:20]} 16. hxg4 {[%emt 0:02:21]} hxg4 {[%emt 0:00:27]} 17. Nxg4 {[%emt 0:03:01]} Qh7 {[%emt 0:00:19]} 18. f3 {[%emt 0:02:59]} Ng3 {[%emt 0:09:36]} 19. Nh6 {[%emt 0:10:06]} f5 {[%emt 0:01:48]} 20. Qb1 {[%emt 0:03:52]} Nxf1 {[%emt 0:03:22]} 21. Kxf1 {[%emt 0:04:21]} f4 {[%emt 0:00:26]} 22. Qf5+ {[%emt 0:01:38]} Qxf5 {[%emt 0:01:01]} 23. Nxf5 {[%emt 0:00:06]} fxe3 {[%emt 0:00:08]} 24. Nxd6+ {[%emt 0:00:19]} Rxd6 {[%emt 0:00:20]} 25. Rxe3 {[%emt 0:00:06]} Rh1+ {[%emt 0:00:06]} 26. Kf2 {[%emt 0:00:08]} Rxa1 {[%emt 0:00:09]} 27. b3 {[%emt 0:01:02]} Ra3 {[%emt 0:00:25]} 28. b4 {[%emt 0:00:47]} Ra2+ {[%emt 0:00:16]} 29. Kg3 {[%emt 0:00:27]} Rg6+ {[%emt 0:00:15]} 0-1

[Event "7th Leer Open-B 2024"]
[Site "Leer"]
[Date "2024.10.31"]
[Round "1.32"]
[White "Meyer, Frank"]
[Black "Meyer, Tobias"]
[Result "0-1"]
[ECO "C42"]
[WhiteElo "2038"]
[BlackElo "1671"]
[Annotator "RC"]
[PlyCount "80"]
[EventDate "2024.10.14"]
[EventType "swiss"]
[EventCountry "GER"]
[SourceTitle "playchess.com"]
[Source "ChessBase"]
[SourceQuality "1"]
[TimeControl "40/5400+30:900+30"]

1. e4 {[%emt 0:00:09]} e5 {[%emt 0:00:18]} 2. Nf3 {[%emt 0:00:18]} Nf6 {[%emt 0:01:04]} 3. d3 {[%emt 0:01:04]} Bc5 {[%emt 0:00:35]} 4. h3 {[%emt 0:02:51]} d6 {[%emt 0:02:08]} 5. Nc3 {[%emt 0:01:14]} O-O {[%emt 0:01:57]} 6. Be2 {[%emt 0:06:48]} c6 {[%emt 0:01:38]} 7. Nh2 {[%emt 0:04:36]} Nbd7 {[%emt 0:01:28]} 8. Bg5 {[%emt 0:02:51]} Qb6 {[%emt 0:01:32]} 9. O-O {[%emt 0:02:14]} Qxb2 {[%emt 0:03:46]} 10. Na4 {[%emt 0:00:16]} Qb4 {[%emt 0:03:32]} 11. c3 {[%emt 0:01:56]} Qa5 {[%emt 0:01:27]} 12. Nxc5 {[%emt 0:06:37]} Qxc5 {[%emt 0:01:15]} 13. Qb3 {[%emt 0:03:04]} h6 {[%emt 0:06:45]} 14. Be3 {[%emt 0:01:21]} Qa5 {[%emt 0:02:57]} 15. Ng4 {[%emt 0:19:15]} Nxg4 {[%emt 0:05:37]} 16. Bxg4 {[%emt 0:02:52]} Nc5 {[%emt 0:01:43]} 17. Bxc5 {[%emt 0:01:54]} Qxc5 {[%emt 0:00:11]} 18. Bxc8 {[%emt 0:02:39]} Rfxc8 {[%emt 0:00:08]} 19. Rab1 {[%emt 0:01:11]} b5 {[%emt 0:03:10]} 20. Rfd1 {[%emt 0:00:32]} a5 {[%emt 0:01:18]} 21. d4 {[%emt 0:01:52]} exd4 {[%emt 0:00:42]} 22. Rxd4 {[%emt 0:00:36]} a4 {[%emt 0:02:18]} 23. Qb4 {[%emt 0:02:23]} Qxb4 {[%emt 0:04:04]} 24. Rdxb4 {[%emt 0:01:07]} Kf8 {[%emt 0:02:44]} 25. c4 {[%emt 0:02:00]} bxc4 {[%emt 0:02:34]} 26. Rxc4 {[%emt 0:00:14]} c5 {[%emt 0:03:37]} 27. f3 {[%emt 0:02:50]} Ke7 {[%emt 0:03:43]} 28. Rb5 {[%emt 0:00:13]} Kd7 {[%emt 0:01:07]} 29. Rc2 {[%emt 0:03:09]} Rcb8 {[%emt 0:00:42]} 30. Rxb8 {[%emt 0:00:39]} Rxb8 {[%emt 0:00:10]} 31. Kf2 {[%emt 0:00:10]} a3 {[%emt 0:00:20]} 32. Ke3 {[%emt 0:02:45]} Rb2 {[%emt 0:00:17]} 33. Rd2 {[%emt 0:00:07]} Kc6 {[%emt 0:01:30]} 34. Kd3 {[%emt 0:00:09]} Rxd2+ {[%emt 0:00:11]} 35. Kxd2 {[%emt 0:00:09]} f6 {[%emt 0:01:50]} 36. Kc3 {[%emt 0:00:13]} d5 {[%emt 0:00:19]} 37. exd5+ {[%emt 0:00:41]} Kxd5 {[%emt 0:00:08]} 38. Kb3 {[%emt 0:00:04]} Kd4 {[%emt 0:00:13]} 39. Kxa3 {[%emt 0:03:04]} Kc3 {[%emt 0:00:37]} 40. Ka4 {[%emt 0:00:10]} Kd3 {[%emt 0:02:26]} 0-1

[Event "7th Leer Open-B 2024"]
[Site "Leer"]
[Date "2024.10.31"]
[Round "2.2"]
[White "Ulrich, Helena Irene"]
[Black "Wernke-Schmiesing, Sebastian"]
[Result "1/2-1/2"]
[ECO "B13"]
[WhiteElo "1712"]
[BlackElo "1808"]
[Annotator "NA COMBH"]
[PlyCount "50"]
[EventDate "2024.10.14"]
[EventType "swiss"]
[EventCountry "GER"]
[SourceTitle "playchess.com"]
[Source "ChessBase"]
[SourceQuality "1"]
[TimeControl "40/5400+30:900+30"]

1. e4 {[%emt 0:00:01]} c6 {[%emt 0:00:04]} 2. d4 {[%emt 0:00:04]} d5 {[%emt 0:00:04]} 3. exd5 {[%emt 0:00:02]} cxd5 {[%emt 0:00:06]} 4. Bd3 {[%emt 0:00:05]} Nc6 {[%emt 0:00:06]} 5. c3 {[%emt 0:00:10]} Qc7 {[%emt 0:00:08]} 6. Ne2 {[%emt 0:03:17]} Bg4 {[%emt 0:00:25]} 7. O-O {[%emt 0:02:08]} e6 {[%emt 0:01:15]} 8. Qe1 {[%emt 0:02:58]} Bd6 {[%emt 0:00:36]} 9. f3 {[%emt 0:12:03]} Bh5 {[%emt 0:02:40]} 10. Qh4 {[%emt 0:04:18]} Bg6 {[%emt 0:02:28]} 11. Bxg6 {[%emt 0:01:57]} fxg6 {[%emt 0:00:08]} 12. Bf4 {[%emt 0:07:33]} Nge7 {[%emt 0:03:35]} 13. Qg3 {[%emt 0:13:30]} Nf5 {[%emt 0:05:31]} 14. Bxd6 {[%emt 0:01:05]} Qxd6 {[%emt 0:00:31]} 15. Qxd6 {[%emt 0:01:46]} Nxd6 {[%emt 0:00:04]} 16. Nd2 {[%emt 0:05:57]} Kd7 {[%emt 0:03:34]} 17. Nb3 {[%emt 0:06:02]} b6 {[%emt 0:00:42]} 18. Nf4 {[%emt 0:07:41]} Rhf8 {[%emt 0:04:05]} 19. Nd3 {[%emt 0:02:38]} Nc4 {[%emt 0:05:05]} 20. Rfe1 {[%emt 0:04:33]} Rae8 {[%emt 0:01:09]} 21. Re2 {[%emt 0:02:54]} e5 {[%emt 0:02:51]} 22. dxe5 {[%emt 0:03:22]} N6xe5 {[%emt 0:00:44]} 23. Nxe5+ {[%emt 0:00:19]} Rxe5 {[%emt 0:01:44]} 24. Rxe5 {[%emt 0:00:36]} Nxe5 {[%emt 0:00:06]} 25. Rd1 {[%emt 0:01:10] Check Result:0.39} Kd6 {[%emt 0:02:17]} 1/2-1/2

[Event "7th Leer Open-B 2024"]
[Site "Leer"]
[Date "2024.10.31"]
[Round "2.3"]
[White "Witte, Volker"]
[Black "von Haefen, Dieter"]
[Result "1/2-1/2"]
[ECO "D87"]
[WhiteElo "1803"]
[BlackElo "1709"]
[Annotator "NA COMBH"]
[PlyCount "49"]
[EventDate "2024.10.14"]
[EventType "swiss"]
[EventCountry "GER"]
[SourceTitle "playchess.com"]
[Source "ChessBase"]
[SourceQuality "1"]
[TimeControl "40/5400+30:900+30"]

1. d4 {[%emt 0:00:05]} Nf6 {[%emt 0:00:08]} 2. c4 {[%emt 0:00:05]} g6 {[%emt 0:00:06]} 3. Nc3 {[%emt 0:00:07]} d5 {[%emt 0:00:15]} 4. cxd5 {[%emt 0:00:12]} Nxd5 {[%emt 0:00:07]} 5. e4 {[%emt 0:00:09]} Nxc3 {[%emt 0:00:06]} 6. bxc3 {[%emt 0:00:07]} Bg7 {[%emt 0:00:07]} 7. Bc4 {[%emt 0:00:11]} c5 {[%emt 0:00:48]} 8. Ne2 {[%emt 0:00:25]} Nd7 {[%emt 0:01:04]} 9. O-O {[%emt 0:00:39]} O-O {[%emt 0:01:44]} 10. Be3 {[%emt 0:04:08]} Qc7 {[%emt 0:01:31]} 11. Rc1 {[%emt 0:01:39]} b6 {[%emt 0:01:01]} 12. Qd2 {[%emt 0:21:28]} Rd8 {[%emt 0:04:15]} 13. Bd3 {[%emt 0:11:45]} Bb7 {[%emt 0:01:49]} 14. f3 {[%emt 0:00:47]} Rac8 {[%emt 0:03:12]} 15. Bf4 {[%emt 0:04:57]} e5 {[%emt 0:02:44]} 16. Bh6 {[%emt 0:01:05]} Bh8 {[%emt 0:02:01]} 17. d5 {[%emt 0:01:40]} c4 {[%emt 0:00:50]} 18. Bb1 {[%emt 0:00:37]} Qc5+ {[%emt 0:00:50]} 19. Kh1 {[%emt 0:00:56]} Qd6 {[%emt 0:01:54]} 20. h4 {[%emt 0:02:37]} Qe7 {[%emt 0:05:23]} 21. Bg5 {[%emt 0:01:12]} f6 {[%emt 0:00:12]} 22. Bh6 {[%emt 0:00:17]} Bg7 {[%emt 0:00:11]} 23. g3 {[%emt 0:00:39]} Bxh6 {[%emt 0:00:37]} 24. Qxh6 {[%emt 0:46:43]} Qg7 {[%emt 0:00:08] Check Result:-0.69} 25. Qxg7+ {[%emt 0:00:00]} 1/2-1/2

[Event "7th Leer Open-B 2024"]
[Site "Leer"]
[Date "2024.10.31"]
[Round "2.3"]
[White "Ahrens, Gunnar"]
[Black "Wilmink, Marion"]
[Result "1-0"]
[ECO "A02"]
[WhiteElo "1760"]
[BlackElo "1545"]
[Annotator "NA COMBH"]
[PlyCount "39"]
[EventDate "2024.10.14"]
[EventType "swiss"]
[EventCountry "GER"]
[SourceTitle "playchess.com"]
[Source "ChessBase"]
[SourceQuality "1"]
[TimeControl "40/5400+30:900+30"]

1. f4 {[%emt 0:00:03]} Nc6 {[%emt 0:00:39]} 2. Nf3 {[%emt 0:00:09]} d6 {[%emt 0:01:39]} 3. e3 {[%emt 0:00:25]} Nf6 {[%emt 0:00:58]} 4. Bb5 {[%emt 0:00:40]} Bd7 {[%emt 0:01:44]} 5. O-O {[%emt 0:00:26]} a6 {[%emt 0:01:08]} 6. Be2 {[%emt 0:01:17]} e5 {[%emt 0:00:18]} 7. fxe5 {[%emt 0:01:51]} dxe5 {[%emt 0:01:11]} 8. Nc3 {[%emt 0:02:29]} Bc5 {[%emt 0:04:03]} 9. b3 {[%emt 0:05:11]} O-O {[%emt 0:09:05]} 10. Kh1 {[%emt 0:09:13]} Be6 {[%emt 0:11:18]} 11. Bb2 {[%emt 0:06:41]} Qd6 {[%emt 0:07:10]} 12. Ng5 {[%emt 0:05:30]} Rad8 {[%emt 0:04:19]} 13. Bd3 {[%emt 0:07:40]} h6 {[%emt 0:01:26]} 14. Rxf6 {[%emt 0:02:56]} gxf6 {[%emt 0:11:09]} 15. Nce4 {[%emt 0:07:59]} Qe7 {[%emt 0:01:10]} 16. Nxe6 {[%emt 0:16:28]} fxe6 {[%emt 0:00:36]} 17. Qg4+ {[%emt 0:02:43]} Qg7 {[%emt 0:01:22]} 18. Qxe6+ {[%emt 0:01:39]} Kh8 {[%emt 0:04:49]} 19. Nxc5 {[%emt 0:00:41]} Rg8 {[%emt 0:04:22] Check Result:7.87} 20. Qh3 {[%emt 0:00:33]} 1-0